Cogmind - Beta 11 @@@ ROGUE MODE // 2022.04.11 @ 09:20:37 Player: Happytimes Result: Self-destructed Performance ------------- Evolutions (2) 1000 Regions Visited (6) 1200 Robots Destroyed (36) 180 Value Destroyed (758) 758 Prototype IDs (4) 80 Alien Tech Used (0) 0 Bonus (1000) 1000 TOTAL SCORE: 4218 Bonus ------- Entered Garrisons 200 Used RIF Installer 500 Aligned with FarCom 300 Cogmind --------- Core Integrity 299/550 Matter 87/300 Energy 150/150 System Corruption 0% Temperature Cool (-100) Movement Core (350) Ox6 Location -8/Garrison Parts ------- > --- POWER (1) -------- Micro Nuclear Core > --- PROPULSION (4) --- (None) > --- UTILITY (4) ------ Cryofiber Web Small Storage Unit Advanced Weight Redist. System > --- WEAPON (2) ------- Pulse Rifle Advanced Beam Cannon > --- INVENTORY (8) ---- Skeleton Box Thief Drone Bay (3/3) Datajack Mining Laser Heavy Flail Heavy Flail Peak State ------------ > --- POWER ------------ Micro Nuclear Core > --- PROPULSION ------- Wheel Compact Wheel Compact Wheel Hover Unit > --- UTILITY ---------- Cryofiber Web Cryofiber Web Small Storage Unit Advanced Weight Redist. System > --- WEAPON ----------- Pulse Rifle Rocket Launcher > --- INVENTORY -------- Micro Nuclear Core Skeleton Box Thief Drone Bay Particle Gun Datajack Mining Laser Heavy Flail Heavy Flail [Rating: 25] Favorites ----------- Power Light Ion Engine Engine Light Ion Engine Power Core Micro Nuclear Core Propulsion Wheel Leg Aluminum Leg Wheel Wheel Hover Unit Hover Unit Utility Small Storage Unit Device Advanced Weight Redist. System Storage Small Storage Unit Protection Propulsion Shielding Weapon Light Assault Rifle Energy Gun Pulse Rifle Energy Cannon Advanced Beam Cannon Ballistic Gun Light Assault Rifle Launcher Grenade Launcher Impact Weapon Heavy Flail Build | -11 -10 -10 -10 -9 -8 -8 ------- Run | Scr Mat Min Exi Min Mat Gar Slots Evolved 4 | . . . . . 4 . Power . | . . . . . . . Propulsion 2 | . . . . . 2 . Utility 2 | . . . . . 2 . Weapon . | . . . . . . . Parts Attached 56 | 6 8 4 2 1 30 5 Power 9 | 1 1 1 . . 5 1 Engine 5 | 1 1 1 . . 2 . Core 4 | . . . . . 3 1 Reactor . | . . . . . . . Propulsion 12 | 2 4 1 . . 5 . Treads . | . . . . . . . Leg 2 | . 2 . . . . . Wheel 8 | 2 2 . . . 4 . Hover 2 | . . 1 . . 1 . Flight . | . . . . . . . Utility 10 | 1 . 1 2 . 6 . Device 7 | . . 1 2 . 4 . Storage 1 | 1 . . . . . . Processor . | . . . . . . . Hackware . | . . . . . . . Protection 2 | . . . . . 2 . Artifact . | . . . . . . . Weapon 25 | 2 3 1 . 1 14 4 Energy Gun 9 | . . . . . 8 1 Energy Cannon 3 | . . . . . 2 1 Ballistic Gun 4 | 2 2 . . . . . Ballistic Cannon . | . . . . . . . Launcher 8 | . 1 1 . 1 3 2 Special Weapon . | . . . . . . . Impact Weapon 1 | . . . . . 1 . Slashing Weapon . | . . . . . . . Piercing Weapon . | . . . . . . . Special Melee Weapon . | . . . . . . . Unidentified Prototypes 4 | . . 1 2 . 1 . Parts Lost 15 | . 3 1 . . 6 5 Power 3 | . 1 . . . 1 1 Propulsion 9 | . 2 1 . . 3 3 Utility 1 | . . . . . 1 . Weapon 2 | . . . . . 1 1 Highest Loss Streak 5 | . 3 1 . . 5 4 To Critical Strikes . | . . . . . . . Average Slot Usage (%) 82 | . 79 84 99 86 78 78 Engine 8 | . 13 14 14 14 2 . Core 2 | . . . . . 6 9 Wheel 17 | . 20 15 14 14 19 18 Hover 6 | . . 7 14 14 4 5 Device 9 | . . 4 13 1 16 18 Storage 11 | . 14 14 14 14 9 9 Protection 1 | . . . . . 2 . Energy Gun 4 | . . . . . 10 6 Ballistic Gun 11 | . 27 18 14 14 1 . Launcher 5 | . . 9 14 14 3 4 Naked Turns . | . . . . . . . Heaviest Build 20 | 12 12 16 16 14 20 20 Greatest Support 51 | 20 20 20 10 10 51 51 Greatest Overweight (x) 4 | . 3 1 1 1 4 1 Average Overweight (x) . | . . . 1 1 . . Largest Inventory Capacity 8 | 8 8 8 8 8 8 8 Average Capacity 7 | 6 8 8 8 8 8 8 Most Carried 8 | 5 5 8 8 8 8 8 Average Carried 6 | 2 2 7 7 7 7 7 Final Capacity 8 | 8 8 8 8 8 8 8 Final Carried 8 | 1 5 7 8 8 8 6 Class Distribution -------------------- 87% | Mutant 12% | Scavenger-Mutant Dominant Class ---------------- Mutant | -10/Materials Mutant | -10/Mines Mutant | -10/Exiles Mutant | -9/Mines Mutant | -8/Materials Mutant | -8/Garrison Resources | -11 -10 -10 -10 -9 -8 -8 ----------- Run | Scr Mat Min Exi Min Mat Gar Matter Collected 814 | 260 60 175 . 68 217 34 Remotely . | . . . . . . . Salvage Created 922 | . 130 102 . . 638 52 Parts 65 | . 9 13 . . 42 1 Haulers Intercepted 2 | . . . . . 2 . Recyclers Shooed 4 | . . 1 . . 3 . Parts Field Recycled . | . . . . . . . Retrieved Matter . | . . . . . . . Parts Self-Destructed . | . . . . . . . Prevented . | . . . . . . . Kills | -11 -10 -10 -10 -9 -8 -8 ------- Run | Scr Mat Min Exi Min Mat Gar Combat Hostiles Destroyed 27 | . 5 7 . . 13 2 Guns 11 | . 5 1 . . 4 1 Cannons 1 | . . . . . . 1 AOE 15 | . . 6 . . 9 . Classes Destroyed 8 | . 2 1 . . 5 . Worker 3 | . . . . . 3 . Builder 1 | . . . . . 1 . Hauler 2 | . . . . . 2 . Recycler 3 | . . 1 . . 2 . Swarmer 15 | . 3 6 . . 6 . Grunt 9 | . 2 1 . . 4 2 Sentry 2 | . . . . . 2 . Hunter 1 | . . . . . 1 . Best Kill Streak 8 | . 3 4 . . 8 2 Combat Bots Only 4 | . 3 3 . . 4 2 Max Kills in Single Turn 3 | . 2 3 . . 3 1 Gunslinging 1 | . 1 . . . . . Exploded 2 | . . 2 . . 2 . Melee . | . . . . . . . Uniques/NPCs Destroyed . | . . . . . . . Combat | -11 -10 -10 -10 -9 -8 -8 -------- Run | Scr Mat Min Exi Min Mat Gar Damage Taken 1754 | . 329 236 . . 753 436 Core 343 | . 75 17 . . 170 81 Absorbed by Shields . | . . . . . . . Redirected to Shielding 52 | . . . . . 52 . Core Remaining (%) 81 | 100 . . . 63 . . Volleys Fired 116 | . 24 21 . . 57 14 Largest 2 | . 2 2 . . 2 2 Hottest 131 | . 40 50 . . 131 131 Shots Fired 188 | . 47 30 . . 91 20 Gun 157 | . 46 22 . . 83 6 Cannon 7 | . . . . . 1 6 Launcher 24 | . 1 8 . . 7 8 Special . | . . . . . . . Kinetic 76 | . 46 22 . . 8 . Thermal 69 | . . . . . 57 12 Explosive 24 | . 1 8 . . 7 8 Electromagnetic 19 | . . . . . 19 . Robot Hit Streak 14 | . 6 12 . . 8 14 Robot Miss Streak 5 | . 2 5 . . 4 1 Penetration Max . | . . . . . . . Secondary Targets 2 | . 2 . . . . . Max Gunslinging Chain 1 | . 1 . . . . . Shots Hit Robots 112 | . 30 15 . . 55 12 Core Hits 69 | . 13 15 . . 35 6 Critical Kills . | . . . . . . . Critical Parts Destroyed . | . . . . . . . Critical Strikes 2 | . . . . . 2 . Burn 2 | . . . . . 2 . Melee Attacks 1 | . . . . . 1 . Impact 1 | . . . . . 1 . Slashing . | . . . . . . . Piercing . | . . . . . . . Sneak Attacks . | . . . . . . . Combat Hostiles . | . . . . . . . Follow-up Attacks . | . . . . . . . Damage Inflicted 2788 | . 270 483 . . 1615 420 Guns 1322 | . 246 128 . . 880 68 Cannons 83 | . . . . . . 83 Explosions 1382 | . 24 355 . . 734 269 Melee . | . . . . . . . Ramming 1 | . . . . . 1 . Kinetic 419 | . 246 128 . . 45 . Thermal 857 | . . . . . 706 151 Explosive 1319 | . 24 355 . . 671 269 Electromagnetic 192 | . . . . . 192 . Impact . | . . . . . . . Slashing . | . . . . . . . Piercing . | . . . . . . . Highest Corruption . | . . . . . . . Average Corruption . | . . . . . . . Corruption Purged . | . . . . . . . Corruption Blocked . | . . . . . . . Overload Shots . | . . . . . . . Overflow Damage 41 | . . 26 . . 15 . Projectiles . | . . . . . . . Explosions 41 | . . 26 . . 15 . Melee . | . . . . . . . Knockbacks . | . . . . . . . Impact . | . . . . . . . Kinetic . | . . . . . . . Secondary . | . . . . . . . Self-Inflicted Damage 39 | . . 39 . . . . Shots 1 | . . 1 . . . . Rammed 1 | . . . . . 1 . Targets Rammed 1 | . . . . . 1 . Kicked . | . . . . . . . Crushed . | . . . . . . . Highest Temperature 236 | . 38 30 . . 236 184 Average Temperature 89 | . 19 14 . . 109 102 Received Heat Transfer 747 | . 138 87 . . 306 216 Siege Activations . | . . . . . . . Robots Corrupted . | . . . . . . . Combat Hostiles . | . . . . . . . Parts Fried . | . . . . . . . Impact Corruptions . | . . . . . . . Robots Melted . | . . . . . . . Combat Hostiles . | . . . . . . . Parts Melted 1 | . . . . . . 1 Heat Transferred 1974 | . . . . . 1678 296 Parts Sabotaged . | . . . . . . . Parts Stolen . | . . . . . . . Parts Stripped . | . . . . . . . Power Chain Reactions 1 | . . . . . 1 . Missiles Intercepted . | . . . . . . . Alert | -11 -10 -10 -10 -9 -8 -8 ------- Run | Scr Mat Min Exi Min Mat Gar Peak Influence 366 | . 119 366 . . 286 121 Initial 88 | . . 46 . . . 88 Average 117 | . 70 164 . . 137 98 Maximum Alert Level 1 | . . 1 . . 1 . Low Security (%) 76 | 100 100 52 . 100 70 100 Level 1 23 | . . 47 . . 29 . Level 2 . | . . . . . . . Level 3 . | . . . . . . . Level 4 . | . . . . . . . Level 5 . | . . . . . . . High Security . | . . . . . . . Max Security . | . . . . . . . Squads Dispatched 2 | . 1 . . . 1 . Investigation . | . . . . . . . Extermination . | . . . . . . . Reinforcement 2 | . 1 . . . 1 . Assault . | . . . . . . . Garrison . | . . . . . . . Intercept . | . . . . . . . Searches Triggered . | . . . . . . . Construction Impeded . | . . . . . . . Haulers Reinforced . | . . . . . . . Active Scanning Responses . | . . . . . . . Cargo Convoy Interrupts . | . . . . . . . Stealth | -11 -10 -10 -10 -9 -8 -8 --------- Run | Scr Mat Min Exi Min Mat Gar Distress Signals 2 | . . . . . 2 . Communications Jammed . | . . . . . . . Distress Signals . | . . . . . . . Times Spotted 44 | . 9 8 . . 21 6 Peak Tracking Total 6 | . 3 3 . . 6 3 Tactical Retreats 2 | . . . . . 2 . Traps | -11 -10 -10 -10 -9 -8 -8 ------- Run | Scr Mat Min Exi Min Mat Gar Traps Triggered . | . . . . . . . Indirectly . | . . . . . . . Trap Hack Attempts . | . . . . . . . Triggered . | . . . . . . . Disarmed . | . . . . . . . Reprogrammed . | . . . . . . . Reused . | . . . . . . . Traps Extracted . | . . . . . . . Installed . | . . . . . . . Triggered . | . . . . . . . Most Traps Carried 3 | . . 3 3 3 2 . Machines | -11 -10 -10 -10 -9 -8 -8 ---------- Run | Scr Mat Min Exi Min Mat Gar Machines Disabled 2 | . . 1 . . 1 . Max in Single Turn 1 | . . 1 . . 1 . Machines Sabotaged . | . . . . . . . Garrisons Compromised . | . . . . . . . Overloaded Fab Kills . | . . . . . . . Hacking | -11 -10 -10 -10 -9 -8 -8 --------- Run | Scr Mat Min Exi Min Mat Gar Machines Accessed 7 | . 2 2 . . 3 . Terminals 5 | . 2 1 . . 2 . Fabricators . | . . . . . . . Repair Stations . | . . . . . . . Recycling Units . | . . . . . . . Scanalyzers . | . . . . . . . Garrison Access 1 | . . . . . 1 . Total Hacks 11 | . 4 2 . . 5 . Successful 9 | . 3 2 . . 4 . Failed 2 | . 1 . . . 1 . Catastrophic 1 | . . . . . 1 . Database Lockouts . | . . . . . . . Manual 1 | . . . 1 . . . Terminals 9 | . 4 1 . . 4 . Fabricators . | . . . . . . . Repair Stations . | . . . . . . . Recycling Units . | . . . . . . . Scanalyzers . | . . . . . . . Garrison Access 1 | . . . . . 1 . Terminal Hacks 8 | . 3 2 . . 3 . Open Door 1 | . . 1 . . . . Terminal Index 1 | . . . . . 1 . Alert Level 2 | . 1 . . . 1 . Locate Traps 3 | . 2 . . . 1 . Zone Layout 1 | . . 1 . . . . Fabricator Hacks . | . . . . . . . Repair Station Hacks . | . . . . . . . Recycling Unit Hacks . | . . . . . . . Scanalyzer . | . . . . . . . Garrison Access Hacks 1 | . . . . . 1 . Unlock Access 1 | . . . . . 1 . Unauthorized Hacks . | . . . . . . . Terminals . | . . . . . . . Fabricators . | . . . . . . . Repair Stations . | . . . . . . . Recycling Units . | . . . . . . . Scanalyzers . | . . . . . . . Garrison Access . | . . . . . . . Data Cores Recovered . | . . . . . . . Used . | . . . . . . . Hacking Detections 3 | . 1 . . . 2 . Full Trace Events 1 | . 1 . . . . . Feedback Events . | . . . . . . . Feedback Blocked . | . . . . . . . Robot Schematics Acquired . | . . . . . . . Robots Built . | . . . . . . . Authchips . | . . . . . . . Time . | . . . . . . . Total Robot Build Rating . | . . . . . . . Part Schematics Acquired . | . . . . . . . Parts Built . | . . . . . . . Authchips . | . . . . . . . Time . | . . . . . . . Total Part Build Rating . | . . . . . . . Parts Repaired . | . . . . . . . Time . | . . . . . . . Parts Recycled . | . . . . . . . Recycled Matter . | . . . . . . . Retrieved Matter . | . . . . . . . Retrieved Components . | . . . . . . . Parts Scanalyzed . | . . . . . . . Part Schematics Acquired . | . . . . . . . Parts Damaged . | . . . . . . . Bothacking | -11 -10 -10 -10 -9 -8 -8 ------------ Run | Scr Mat Min Exi Min Mat Gar Used RIF Installer 1 | . . . . . . 1 Robots Hacked . | . . . . . . . Non-combat . | . . . . . . . Combat . | . . . . . . . Robot Hacks Applied . | . . . . . . . Relay Couplers Released . | . . . . . . . Fabnet Peak Effective % . | . . . . . . . Robots Rewired . | . . . . . . . Allies Hacked . | . . . . . . . Hacks Repelled . | . . . . . . . Allies | -11 -10 -10 -10 -9 -8 -8 -------- Run | Scr Mat Min Exi Min Mat Gar Total Allies . | . . . . . . . Largest Group . | . . . . . . . Highest-Rated Group . | . . . . . . . Highest-Rated Ally . | . . . . . . . Total Orders . | . . . . . . . Ally Attacks . | . . . . . . . Total Damage . | . . . . . . . Kills . | . . . . . . . Allies Corrupted . | . . . . . . . Allies Melted . | . . . . . . . Intel | -11 -10 -10 -10 -9 -8 -8 ------- Run | Scr Mat Min Exi Min Mat Gar Robot Analysis Total . | . . . . . . . Derelict Logs Recovered 1 | . . 1 . . . . Drone Launches . | . . . . . . . Drone Recoveries . | . . . . . . . Exploration | -11 -10 -10 -10 -9 -8 -8 ------------- Run | Scr Mat Min Exi Min Mat Gar Turns Passed 2096 | 33 352 444 235 124 802 106 Spaces Moved 1658 | 33 262 401 243 116 540 63 Core 56 | 16 15 . . . 25 . Treads . | . . . . . . . Legs 27 | . 27 . . . . . Wheels 1555 | 17 220 400 243 116 496 63 Hover 20 | . . 1 . . 19 . Flight . | . . . . . . . Fastest Speed 50 | 50 80 80 95 95 50 93 Average Speed 94 | 65 90 89 95 95 101 97 Slowest Speed 255 | 80 200 125 95 95 255 115 Overloaded Moves . | . . . . . . . Propulsion Burnouts . | . . . . . . . Robots Hopped . | . . . . . . . Cave-ins Triggered . | . . . . . . . Time Travels 1 | . . . 1 . . . Exploration Rate (%) 38 | 3 37 69 62 28 51 19 Regions Visited 6 Branch Regions 3 Pre-discovered Areas . | . . . . . . . Known Exits Taken 2 | . . . 1 . 1 . Unknown Exits Taken 4 | 1 1 1 . 1 . . Scrap Searched 3 | . . 2 . 1 . . Spaces Dug 7 | . . 6 . . 1 . Terrain Destroyed 146 | . 7 57 . . 47 35 Melee 1 | . . . . . 1 . Projectile . | . . . . . . . AOE 145 | . 7 57 . . 46 35 Terrain Rammed . | . . . . . . . Walls Destroyed . | . . . . . . . Machines Disabled . | . . . . . . . Actions | -11 -10 -10 -10 -9 -8 -8 --------- Run | Scr Mat Min Exi Min Mat Gar Total 1996 | 43 338 459 246 131 693 86 Wait 116 | . 32 24 . 10 46 4 Move 1652 | 32 261 400 242 115 539 63 Hop . | . . . . . . . Pick Up 27 | 5 10 6 1 1 4 . Fast Attach 27 | 2 . 2 2 1 20 . Attach 11 | 4 5 . . . . 2 Detach 1 | . . . . 1 . . Swap 18 | . 3 2 . . 10 3 Drop 26 | . 3 4 1 3 15 . Fire 116 | . 24 21 . . 57 14 Melee 1 | . . . . . 1 . Ram 1 | . . . . . 1 . Kick . | . . . . . . . Crush . | . . . . . . . Escape Stasis . | . . . . . . . Rewire . | . . . . . . . Trap . | . . . . . . . Miscellaneous . | . . . . . . . Route ------- -11/Scrapyard -10/Materials -10/Mines (discovered 2 exits: [*Mat] / *Exi) -10/Exiles (discovered 2 exits: *Min x2) -9/Mines -8/Materials -8/Garrison History --------- Turn | Location | Event 14 | -11/Scrapyard | Discovered new exit (range 15) 34 | -11/Scrapyard | Entered Materials 203 | -10/Materials | Lost 3 parts (1p2n) 372 | -10/Materials | Discovered new exit (range 7) 386 | -10/Materials | Entered Mines 454 | -10/Mines | Met a Derelict bent on vengeance 465 | -10/Mines | Found a hidden stash of uninstalled traps 567 | -10/Mines | Build established: Mutant 695 | -10/Mines | Found the Drone Emporium 702 | -10/Mines | Found Prototype Device 702 | -10/Mines | Identified Thief Drone Bay 715 | -10/Mines | Discovered new exit (range 11) 823 | -10/Mines | Deemed a non-threat by the Exiles lab entrance 824 | -10/Mines | Discovered new exit (range 5) 830 | -10/Mines | Entered Exiles 831 | -10/Exiles | Identified exit to Mines 854 | -10/Exiles | Met 8R-AWN 871 | -10/Exiles | Met EX-HEX 902 | -10/Exiles | Met EX-BIN 912 | -10/Exiles | Aligned with FarCom system 913 | -10/Exiles | Given EX-Vault access code 942 | -10/Exiles | Opened EX-Vault 946 | -10/Exiles | Found Prototype Device 947 | -10/Exiles | Identified Chronowheel 947 | -10/Exiles | Activated Chronowheel 947 | -10/Exiles | Spacetime reconverged on an earlier point 951 | -10/Exiles | Found Prototype Device 951 | -10/Exiles | Identified Skeleton Box 981 | -10/Exiles | Warned to stay clear of 0b10 Research branches 1016 | -10/Exiles | Met EX-DEC 1065 | -10/Exiles | Left Exiles lab with Skeleton Box 1065 | -10/Exiles | Entered Mines 1072 | -9/Mines | Received a Rocket Launcher from a helpful Derelict 1117 | -9/Mines | Discovered new exit (range 8) 1189 | -9/Mines | Entered Materials 1189 | -8/Materials | Evolved 4 slots: Propulsion x2, Utility x2 1463 | -8/Materials | Lost 5 parts (1p2n1u1w) 1989 | -8/Materials | Identified exit to Garrison 1991 | -8/Materials | Entered Garrison 1996 | -8/Garrison | Installed Relay Interface Framework 2034 | -8/Garrison | Triggered checkpoint 2092 | -8/Garrison | Lost 4 parts (1p3n) 2097 | -8/Garrison | Self-destructed Last Messages --------------- 02039_ The unstable cave ceiling collapses. 02048_ Com. Wheel destroyed. 02051_ Critical hit (Burn: +37). 02052_ The unstable cave ceiling collapses. 02052_ Destroyed Lgt. Nuclear Core. 02054_ The unstable cave ceiling collapses. 02054_ G-47 Trooper destroyed. 02056_ Wheel destroyed. 02058_ Hover Unit destroyed. 02061_ Mic. Nuclear Core destroyed. 02062_ Aluminum Leg melted. 02062_ G-47 Trooper destroyed. 02066_ The unstable cave ceiling collapses. 02076_ G-47 Trooper destroyed. 02083_ The unstable cave ceiling collapses. 02083_ Acquired 17 matter. 02094_ Rocket Launcher destroyed. 02094_ Knocked back. 02096_ The unstable cave ceiling collapses. 02097_ Com. Wheel severed. Map ----- +----------------------------------------------------+ | ?????????????????????????????????????????????????? | | ?????????????????????????????????????????????????? | | ?????????????????????????????????????????????????? | | ?????????????????????????????????????????????????? | | ?????????????????????????????????????????????????? | | ?????????????????????????????????????????????????? | | ?????????????????????????????????????????????????? | | ?????????????????????????????????????????????????? | | ?????????????????????????????????????????????????? | | ??????????????????????######?????????????????????? | | ???????????????????? #?????????????????????? | | ????????????????????? #?###?????????????????? | | ????????????????????? [+? #?????????????????? | | ????????????????????## % ?# #?????????????????? | | ????????????????????# #?# #?????????????????? | | ????????????????????? ### #?????????????????? | | ?????????????????????# ## #?????????????????? | | ?????????????????????# ## ##????????????????? | | ??????????????????#??# # #????????????????? | | ????????????# #### #### ## ##### ###??????? | | ????????????# #??????? | | ????????????# ^ #??????? | | ???????????????######### c ###########??????? | | ???????????????????????# c# ##????????????????? | | ???????????????????????# c ## ##????????????????? | | ???????????????????????# @ #####?????????????????? | | ???????????????????????# #?????????????????????? | | ???????????????????????# #?????????????????????? | | ???????????????????????# #?????????????????????? | | ???????????????????????# #?????????????????????? | | ???????????????????????# #?????????????????????? | | ???????????????????????# #?????????????????????? | | ???????????????????????# #?????????????????????? | | ???????????????????????# #?????????????????????? | | ???????????????????????# #?????????????????????? | | ???????????????????????# #?????????????????????? | | ???????????????????????# #?????????????????????? | | ???????????????????????# #?????????????????????? | | ???????????????????????# #?????????????????????? | | ???????????????????????# #?????????????????????? | | ???????????????????????# #?????????????????????? | | ???????????????????????# ########??????????????? | | ???????????????????????# #""""#??????????????? | | ???????????????????????# "#??????????????? | | ???????????????????????# #""""#??????????????? | | ???????????????????????############??????????????? | | ?????????????????????????????????????????????????? | | ?????????????????????????????????????????????????? | | ?????????????????????????????????????????????????? | | ?????????????????????????????????????????????????? | +----------------------------------------------------+ Best States ------------- Heat Dissipation 31 Energy Generation 15 Energy Capacity 265 Matter Stores 300 Matter Capacity 300 Sight Range 16 Terrain Scan Density 10 Additional Mass Support 9 Base Temperature (-) 100 Propulsion Shielding 33 Evasion (%) 50 Item Schematics ----------------- None Robot Schematics ------------------ None Fabricated ------------ Nothing Alien Tech Used ----------------- None Achievements -------------- None Challenges ------------ None Game ------ Seed CoordinationFrostStreamer Manual? 0 Play Time 00:17:17 Cumulative 48.6 hours Start 2022.04.11 @ 09:04:09 End 2022.04.11 @ 09:20:37 Sessions 1 Manual Loads 0 Difficulty Rogue Special Mode None Game No. 152 Rogue 152 Adventurer 0 Explorer 0 Win Type - Total 0 Types 0/0/0/0/0/0/0/0/0 Lore% 32 Gallery% 47 Achievement% 37 Wizard Run 0 Options --------- ASCII 0 Keyboard 0 Movement Arrows Keybinds 0 Fullscreen 1 Font 18/SmallcapsGlow Map View 76x50 Tactical HUD 1 Map Filters NONE Filters NONE Steam 1 RUN: 23856b9b-323a-454a-9ea4-92827ef0d8c8